fUST/lending_fUST_20260521
["ID","MTS","AMOUNT","RATE_DAILY","PERIOD"]
[422716912,1779297046000,-861.39,9.589e-05,2]
[422716911,1779297046000,-597.99,9.589e-05,2]
[422716884,1779297046000,-275.505381,9.567e-05,2]
[422716907,1779297046000,-500.0,9.589e-05,2]
[422716914,1779297046000,-500.0,9.589e-05,2]
[422716915,1779297046000,-500.0,9.589e-05,2]
[422716908,1779297046000,-2303.01,9.589e-05,2]
[422716904,1779297046000,-500.0,9.589e-05,2]
[422716899,1779297046000,-500.0,9.589e-05,2]
[422716903,1779297046000,-528.15,9.589e-05,2]
[422716917,1779297046000,-500.0,9.589e-05,2]
[422716882,1779297046000,-430.136744,9.567e-05,2]
[422716913,1779297046000,-683.62,9.589e-05,2]
[422716892,1779297046000,-500.0,9.589e-05,2]
[422716886,1779297046000,-160.0,9.567e-05,2]
[422716862,1779297046000,-1134.17293,9.52e-05,2]
[422716863,1779297046000,-2108.345861,9.52e-05,2]
[422716854,1779297046000,-316.623098,9.472e-05,2]
[422716859,1779297046000,-3400.824698,9.52e-05,2]
[422716851,1779297046000,-1592.060122,9.472e-05,2]
[422716856,1779297046000,-160.0,9.5e-05,2]
[422716857,1779297046000,-270.156929,9.52e-05,2]
[422716858,1779297046000,-160.0,9.52e-05,2]
[422716853,1779297046000,-160.0,9.472e-05,2]
[422716855,1779297046000,-473.246196,9.472e-05,2]
[422716860,1779297046000,-6641.649396,9.52e-05,2]
[422716861,1779297046000,-160.0,9.52e-05,2]
[422716865,1779297046000,-798.068541,9.52e-05,2]
[422716867,1779297046000,-160.0,9.52e-05,2]
[422716864,1779297046000,-160.0,9.52e-05,2]
[422716874,1779297046000,-160.0,9.567e-05,2]
[422716866,1779297046000,-1436.137082,9.52e-05,2]
[422716893,1779297046000,-500.0,9.589e-05,2]
[422716881,1779297046000,-295.068372,9.567e-05,2]
[422716878,1779297046000,-164.445514,9.567e-05,2]
[422716870,1779297046000,-160.0,9.52e-05,2]
[422716872,1779297046000,-883.354071,9.52e-05,2]
[422716877,1779297046000,-160.0,9.567e-05,2]
[422716891,1779297046000,-2659.04,9.589e-05,2]
[422716868,1779297046000,-1163.189291,9.52e-05,2]
[422716873,1779297046000,-720.0,9.528e-05,2]
[422716871,1779297046000,-521.677035,9.52e-05,2]
[422716879,1779297046000,-168.891029,9.567e-05,2]
[422716876,1779297046000,-1341.448671,9.567e-05,2]
[422716875,1779297046000,-750.724335,9.567e-05,2]
[422716869,1779297046000,-2166.378582,9.52e-05,2]
[422716963,1779297047000,-3622.62,9.589e-05,2]
[422716960,1779297047000,-5469.1,9.589e-05,2]
[422716954,1779297047000,-500.0,9.589e-05,2]
[422716957,1779297047000,-1019.57,9.589e-05,2]
[422716959,1779297047000,-500.0,9.589e-05,2]
[422716953,1779297047000,-2229.71,9.589e-05,2]
[422716956,1779297047000,-1719.79,9.589e-05,2]
[422716955,1779297047000,-500.0,9.589e-05,2]
[422716961,1779297047000,-500.0,9.589e-05,2]
[422716952,1779297047000,-500.0,9.589e-05,2]
[422716962,1779297047000,-4937.73,9.589e-05,2]
[422716958,1779297047000,-1763.57,9.589e-05,2]
[422716951,1779297047000,-648.75,9.589e-05,2]
[422716981,1779297047000,-686.36,9.589e-05,2]
[422716968,1779297047000,-500.0,9.589e-05,2]
[422716967,1779297047000,-1065.15,9.589e-05,2]
[422716975,1779297047000,-500.0,9.589e-05,2]
[422716966,1779297047000,-500.0,9.589e-05,2]
[422716970,1779297047000,-1851.7,9.589e-05,2]
[422716980,1779297047000,-781.42,9.589e-05,2]
[422716982,1779297047000,-616.63,9.589e-05,2]
[422716972,1779297047000,-522.43,9.589e-05,2]
[422716969,1779297047000,-500.0,9.589e-05,2]
[422716971,1779297047000,-1682.9,9.589e-05,2]
[422716973,1779297047000,-2253.31,9.589e-05,2]
[422716974,1779297047000,-500.0,9.589e-05,2]
[422716978,1779297047000,-1139.28,9.589e-05,2]
[422716950,1779297047000,-985.38,9.589e-05,2]
[422716964,1779297047000,-2698.74,9.589e-05,2]
[422716939,1779297047000,-1552.87,9.589e-05,2]
[422716932,1779297047000,-838.68,9.589e-05,2]
[422716942,1779297047000,-500.0,9.589e-05,2]
[422716918,1779297047000,-500.0,9.589e-05,2]
[422716919,1779297047000,-510.73,9.589e-05,2]
[422716920,1779297047000,-500.0,9.589e-05,2]
[422716921,1779297047000,-1325.68,9.589e-05,2]
[422716924,1779297047000,-500.0,9.589e-05,2]
[422716931,1779297047000,-1189.73,9.589e-05,2]
[422716925,1779297047000,-713.38,9.589e-05,2]
[422716923,1779297047000,-500.0,9.589e-05,2]
[422716928,1779297047000,-968.08,9.589e-05,2]
[422716926,1779297047000,-500.0,9.589e-05,2]
[422716929,1779297047000,-382.1842383,9.589e-05,2]
[422716927,1779297047000,-500.0,9.589e-05,2]
[422716930,1779297047000,-500.0,9.589e-05,2]
[422716940,1779297047000,-1702.51,9.589e-05,2]
[422716933,1779297047000,-500.0,9.589e-05,2]
[422716922,1779297047000,-500.0,9.589e-05,2]
[422716946,1779297047000,-500.0,9.589e-05,2]
[422716936,1779297047000,-500.0,9.589e-05,2]
[422716949,1779297047000,-500.0,9.589e-05,2]
[422716948,1779297047000,-500.0,9.589e-05,2]
[422716947,1779297047000,-623.25,9.589e-05,2]
[422716935,1779297047000,-500.0,9.589e-05,2]
[422716944,1779297047000,-500.0,9.589e-05,2]
[422716941,1779297047000,-506.62,9.589e-05,2]
[422716945,1779297047000,-500.0,9.589e-05,2]
[422716937,1779297047000,-608.34,9.589e-05,2]
[422716943,1779297047000,-664.68,9.589e-05,2]
[422716938,1779297047000,-500.0,9.589e-05,2]
[422716934,1779297047000,-2105.11,9.589e-05,2]
[422716977,1779297047000,-1128.17,9.589e-05,2]
[422716965,1779297047000,-1903.54,9.589e-05,2]
[422716976,1779297047000,-447.49148944,9.589e-05,2]
[422717017,1779297047000,-500.0,9.589e-05,2]
[422717018,1779297047000,-500.0,9.589e-05,2]
[422717015,1779297047000,-1982.07,9.589e-05,2]
[422717021,1779297047000,-160.0,9.604e-05,2]
[422717010,1779297047000,-500.0,9.589e-05,2]
[422717020,1779297047000,-741.7629304,9.597e-05,2]
[422717023,1779297047000,-2602.047471,9.604e-05,2]
[422717034,1779297047000,-500.0,9.863e-05,2]
[422717033,1779297047000,-500.0,9.863e-05,2]
[422717035,1779297047000,-511.54,9.863e-05,2]
[422717022,1779297047000,-1381.023735,9.604e-05,2]
[422717024,1779297047000,-573.0,9.666e-05,2]
[422717025,1779297047000,-573.0,9.838e-05,2]
[422717014,1779297047000,-500.0,9.589e-05,2]
[422717027,1779297047000,-454.364879,9.859e-05,2]
[422717028,1779297047000,-1224.661632,9.859e-05,2]
[422717029,1779297047000,-243.556229,9.859e-05,2]
[422717031,1779297047000,-2659.04,9.863e-05,2]
[422717030,1779297047000,-500.0,9.863e-05,2]
[422717036,1779297047000,-500.0,9.863e-05,2]
[422717039,1779297047000,-500.0,9.863e-05,2]
[422717041,1779297047000,-500.0,9.863e-05,2]
[422717038,1779297047000,-789.16,9.863e-05,2]
[422717042,1779297047000,-500.0,9.863e-05,2]
[422717040,1779297047000,-500.0,9.863e-05,2]
[422717043,1779297047000,-908.58,9.863e-05,2]
[422717044,1779297047000,-528.15,9.863e-05,2]
[422716979,1779297047000,-500.0,9.589e-05,2]
[422717026,1779297047000,-5259.513892,9.859e-05,2]
[422717019,1779297047000,-573.0,9.589e-05,2]
[422717032,1779297047000,-500.0,9.863e-05,2]
[422717011,1779297047000,-563.59,9.589e-05,2]
[422717016,1779297047000,-661.31,9.589e-05,2]
[422716983,1779297047000,-1159.54,9.589e-05,2]
[422716987,1779297047000,-1509.47,9.589e-05,2]
[422716985,1779297047000,-667.77,9.589e-05,2]
[422716986,1779297047000,-520.9069713,9.589e-05,2]
[422716988,1779297047000,-580.89,9.589e-05,2]
[422716993,1779297047000,-842.68,9.589e-05,2]
[422716994,1779297047000,-28395.55,9.589e-05,2]
[422716995,1779297047000,-1433.22,9.589e-05,2]
[422716990,1779297047000,-2541.01,9.589e-05,2]
[422716984,1779297047000,-1554.66,9.589e-05,2]
[422716991,1779297047000,-500.0,9.589e-05,2]
[422716992,1779297047000,-6445.13,9.589e-05,2]
[422716997,1779297047000,-500.0,9.589e-05,2]
[422716989,1779297047000,-2399.66,9.589e-05,2]
[422717006,1779297047000,-1176.68,9.589e-05,2]
[422717012,1779297047000,-2851.03,9.589e-05,2]
[422717007,1779297047000,-1772.93,9.589e-05,2]
[422717013,1779297047000,-501.1942582,9.589e-05,2]
[422717003,1779297047000,-500.0,9.589e-05,2]
[422717004,1779297047000,-574.55,9.589e-05,2]
[422716999,1779297047000,-1295.05,9.589e-05,2]
[422717000,1779297047000,-4515.09,9.589e-05,2]
[422717009,1779297047000,-767.01,9.589e-05,2]
[422716998,1779297047000,-1688.66,9.589e-05,2]
[422717001,1779297047000,-890.67,9.589e-05,2]
[422717008,1779297047000,-4396.86,9.589e-05,2]
[422716996,1779297047000,-500.0,9.589e-05,2]
[422717005,1779297047000,-5620.98,9.589e-05,2]
[422717002,1779297047000,-1363.6,9.589e-05,2]
[422717075,1779297048000,-500.0,9.863e-05,2]
[422717077,1779297048000,-608.34,9.863e-05,2]
[422717072,1779297048000,-838.68,9.863e-05,2]
[422717078,1779297048000,-479.50133725,9.863e-05,2]
[422717074,1779297048000,-2105.11,9.863e-05,2]
[422717069,1779297048000,-968.08,9.863e-05,2]
[422717071,1779297048000,-1189.73,9.863e-05,2]
[422717073,1779297048000,-500.0,9.863e-05,2]
[422717068,1779297048000,-500.0,9.863e-05,2]
[422717090,1779297048000,-985.38,9.863e-05,2]
[422717070,1779297048000,-500.0,9.863e-05,2]
[422717080,1779297048000,-1702.51,9.863e-05,2]
[422717091,1779297048000,-648.75,9.863e-05,2]
[422717079,1779297048000,-1552.87,9.863e-05,2]
[422717092,1779297048000,-500.0,9.863e-05,2]
[422717082,1779297048000,-500.0,9.863e-05,2]
[422717081,1779297048000,-506.62,9.863e-05,2]
[422717083,1779297048000,-664.68,9.863e-05,2]
[422717067,1779297048000,-500.0,9.863e-05,2]
[422717064,1779297048000,-500.0,9.863e-05,2]
[422717051,1779297048000,-181.23969145,9.863e-05,2]
[422717076,1779297048000,-500.0,9.863e-05,2]
[422717088,1779297048000,-500.0,9.863e-05,2]
[422717047,1779297048000,-500.0,9.863e-05,2]
[422717048,1779297048000,-500.0,9.863e-05,2]
[422717046,1779297048000,-796.48,9.863e-05,2]
[422717049,1779297048000,-2303.01,9.863e-05,2]
[422717061,1779297048000,-500.0,9.863e-05,2]
[422717062,1779297048000,-1325.68,9.863e-05,2]
[422717063,1779297048000,-500.0,9.863e-05,2]
[422717056,1779297048000,-500.0,9.863e-05,2]
[422717050,1779297048000,-500.0,9.863e-05,2]
[422717052,1779297048000,-597.99,9.863e-05,2]
[422717058,1779297048000,-500.0,9.863e-05,2]
[422717054,1779297048000,-683.62,9.863e-05,2]
[422717053,1779297048000,-861.39,9.863e-05,2]
[422717055,1779297048000,-500.0,9.863e-05,2]
[422717057,1779297048000,-580.51,9.863e-05,2]
[422717059,1779297048000,-500.0,9.863e-05,2]
[422717060,1779297048000,-510.73,9.863e-05,2]
[422717065,1779297048000,-500.0,9.863e-05,2]
[422717066,1779297048000,-713.38,9.863e-05,2]
[422717087,1779297048000,-623.25,9.863e-05,2]
[422717045,1779297048000,-500.0,9.863e-05,2]
[422717089,1779297048000,-500.0,9.863e-05,2]
[422717117,1779297048000,-1139.28,9.863e-05,2]
[422717108,1779297048000,-500.0,9.863e-05,2]
[422717120,1779297048000,-686.36,9.863e-05,2]
[422717110,1779297048000,-1851.7,9.863e-05,2]
[422717115,1779297048000,-597.80313636,9.863e-05,2]
[422717114,1779297048000,-500.0,9.863e-05,2]
[422717116,1779297048000,-1128.17,9.863e-05,2]
[422717122,1779297048000,-1159.54,9.863e-05,2]
[422717123,1779297048000,-1554.66,9.863e-05,2]
[422717121,1779297048000,-616.63,9.863e-05,2]
[422717124,1779297048000,-667.77,9.863e-05,2]
[422717127,1779297048000,-17.40576002,9.863e-05,2]
[422717125,1779297048000,-1509.47,9.863e-05,2]
[422717128,1779297048000,-2382.25423998,9.863e-05,2]
[422717130,1779297048000,-984.73187115,9.863e-05,2]
[422717132,1779297048000,-279.75064894,9.863e-05,2]
[422717131,1779297048000,-312.37380841,9.863e-05,2]
[422717129,1779297048000,-1243.90432044,9.863e-05,2]
[422717086,1779297048000,-500.0,9.863e-05,2]
[422717109,1779297048000,-500.0,9.863e-05,2]
[422717113,1779297048000,-2253.31,9.863e-05,2]
[422717126,1779297048000,-580.89,9.863e-05,2]
[422717118,1779297048000,-500.0,9.863e-05,2]
[422717085,1779297048000,-500.0,9.863e-05,2]
[422717094,1779297048000,-500.0,9.863e-05,2]
[422717095,1779297048000,-500.0,9.863e-05,2]
[422717093,1779297048000,-2229.71,9.863e-05,2]
[422717096,1779297048000,-1719.79,9.863e-05,2]
[422717084,1779297048000,-500.0,9.863e-05,2]
[422717104,1779297048000,-2698.74,9.863e-05,2]
[422717100,1779297048000,-5469.1,9.863e-05,2]
[422717103,1779297048000,-3622.62,9.863e-05,2]
[422717105,1779297048000,-1903.54,9.863e-05,2]
[422717098,1779297048000,-1763.57,9.863e-05,2]
[422717099,1779297048000,-500.0,9.863e-05,2]
[422717101,1779297048000,-500.0,9.863e-05,2]
[422717102,1779297048000,-4937.73,9.863e-05,2]
[422717107,1779297048000,-1065.15,9.863e-05,2]
[422717106,1779297048000,-500.0,9.863e-05,2]
[422717112,1779297048000,-522.43,9.863e-05,2]
[422717119,1779297048000,-781.42,9.863e-05,2]
[422717097,1779297048000,-1019.57,9.863e-05,2]
[422717111,1779297048000,-1682.9,9.863e-05,2]
[422717136,1779297049000,-248.8933606,8.046e-05,2]
[422717133,1779297049000,-220.24935106,9.863e-05,2]
[422717134,1779297049000,-778.75064894,9.863e-05,2]
[422717135,1779297049000,-2229.23520279,9.863e-05,2]
[422717137,1779297049000,-500.0,8.219e-05,2]
[422717138,1779297049000,-500.0,8.493e-05,2]
[422717140,1779297049000,-500.0,9.041e-05,2]
[422717141,1779297049000,-500.0,9.315e-05,2]
[422717142,1779297049000,-171.69374434,9.589e-05,2]
[422717144,1779297049000,-20095.60391447,9.863e-05,2]
[422717143,1779297049000,-328.30625566,9.589e-05,2]
[422717139,1779297049000,-500.0,8.767e-05,2]
[422717176,1779298173000,-628.77945233,7.6e-05,2]
[422717232,1779298232000,-500.0,8.118e-05,2]
[422717230,1779298232000,-500.0,8.118e-05,2]
[422717221,1779298232000,-300.0,8.116e-05,2]
[422717223,1779298232000,-300.0,8.116e-05,2]
[422717228,1779298232000,-500.0,8.118e-05,2]
[422717225,1779298232000,-500.0,8.118e-05,2]
[422717217,1779298232000,-300.0,8.116e-05,2]
[422717219,1779298232000,-300.0,8.116e-05,2]
[422717210,1779298232000,-160.0,8.095e-05,2]
[422717212,1779298232000,-766.43500783,8.095e-05,2]
[422717214,1779298232000,-2907.49204866,8.1e-05,2]
[422717216,1779298232000,-1200.0,8.115e-05,2]
[422717208,1779298232000,-161.70661154,8.095e-05,2]
[422717206,1779298232000,-152.0,8.046e-05,30]
[422717234,1779298232000,-500.0,8.118e-05,2]
[422717203,1779298232000,-66.54898767,7.6e-05,2]
[422717227,1779298232000,-500.0,8.118e-05,2]
[422717236,1779298232000,-500.0,8.118e-05,2]
[422717204,1779298232000,-492.25483807,7.758e-05,2]
[422717238,1779298232000,-500.0,8.118e-05,2]
[422717275,1779298232000,-2071.504045,8.119e-05,2]
[422717269,1779298232000,-31276.10027958,8.119e-05,2]
[422717268,1779298232000,-600.0,8.118e-05,2]
[422717264,1779298232000,-500.0,8.118e-05,2]
[422717266,1779298232000,-500.0,8.118e-05,2]
[422717262,1779298232000,-500.0,8.118e-05,2]
[422717260,1779298232000,-561.45578988,8.118e-05,2]
[422717249,1779298232000,-500.0,8.118e-05,2]
[422717272,1779298232000,-668.64852029,8.119e-05,2]
[422717247,1779298232000,-500.0,8.118e-05,2]
[422717245,1779298232000,-500.0,8.118e-05,2]
[422717258,1779298232000,-500.0,8.118e-05,2]
[422717256,1779298232000,-500.0,8.118e-05,2]
[422717254,1779298232000,-500.0,8.118e-05,2]
[422717252,1779298232000,-388.53511422,8.118e-05,2]
[422717240,1779298232000,-500.0,8.118e-05,2]
[422717243,1779298232000,-500.0,8.118e-05,2]
[422717241,1779298232000,-471.16427978,8.118e-05,2]
[422717574,1779298240000,-648.18145955,8.119e-05,2]
[422717575,1779298241000,-40810.87906571,8.119e-05,2]
[422717576,1779298241000,-500.0,8.119e-05,2]
[422717602,1779298243000,-1990.70963771,8.119e-05,2]
[422717616,1779298247000,-6655.27186883,8.119e-05,2]
[422717615,1779298247000,-801.01,8.119e-05,2]
[422717620,1779298585000,165.848715,3.63e-05,2]
[422717635,1779299350000,-518.3007953,7.12e-05,2]
[422717634,1779299350000,-165.848715,7.118e-05,2]
[422717636,1779299350000,-190.17784829,7.122e-05,2]
[422717708,1779299432000,-500.0,8.118e-05,2]
[422717704,1779299432000,-500.0,8.118e-05,2]
[422717689,1779299432000,-2003.319999,8.1e-05,2]
[422717706,1779299432000,-500.0,8.118e-05,2]
[422717688,1779299432000,-1200.0,8.099e-05,2]
[422717686,1779299432000,-214.80317424,8.099e-05,2]
[422717685,1779299432000,-85.19682576,8.099e-05,2]
[422717684,1779299432000,-300.0,8.099e-05,2]
[422717681,1779299432000,-160.0,8.092e-05,2]
[422717682,1779299432000,-300.0,8.099e-05,2]
[422717680,1779299432000,-152.0,8.065e-05,30]
[422717676,1779299432000,-756.47102253,8.019e-05,2]
[422717677,1779299432000,-152.0,8.049e-05,30]
[422717678,1779299432000,-152.0,8.065e-05,30]
[422717675,1779299432000,-191.0,8e-05,2]
[422717673,1779299432000,-500.0,7.754e-05,2]
[422717671,1779299432000,-200.0,7.568e-05,2]
[422717669,1779299432000,-109.82215171,7.122e-05,2]
[422717672,1779299432000,-201.51,7.568e-05,7]
[422717692,1779299432000,-3705.01199922,8.1e-05,2]
[422717701,1779299432000,-500.0,8.118e-05,2]
[422717694,1779299432000,-766.43500783,8.118e-05,2]
[422717745,1779299432000,-6304.53640372,8.119e-05,2]
[422717743,1779299432000,-169.574,8.118e-05,2]
[422717739,1779299432000,-500.0,8.118e-05,2]
[422717737,1779299432000,-500.0,8.118e-05,2]
[422717741,1779299432000,-600.0,8.118e-05,2]
[422717722,1779299432000,-500.0,8.118e-05,2]
[422717720,1779299432000,-255.82,8.118e-05,2]
[422717735,1779299432000,-500.0,8.118e-05,2]
[422717724,1779299432000,-485.26232701,8.118e-05,2]
[422717727,1779299432000,-500.0,8.118e-05,2]
[422717731,1779299432000,-500.0,8.118e-05,2]
[422717729,1779299432000,-238.8642423,8.118e-05,2]
[422717699,1779299432000,-160.0,8.118e-05,2]
[422717710,1779299432000,-500.0,8.118e-05,2]
[422717697,1779299432000,-161.70661154,8.118e-05,2]
[422717691,1779299432000,-530.0,8.1e-05,2]
[422717716,1779299432000,-500.0,8.118e-05,2]
[422717718,1779299432000,-500.0,8.118e-05,2]
[422717733,1779299432000,-311.88366385,8.118e-05,2]
[422717713,1779299432000,-500.0,8.118e-05,2]
[422717923,1779299438000,-26663.98762787,8.119e-05,2]
[422717924,1779299438000,-1639.13551002,8.119e-05,2]
[422717922,1779299438000,-152.0,8.064e-05,30]
[422717925,1779299439000,-3077.71104754,8.119e-05,2]
[422717932,1779299444000,-2277.32852476,8.119e-05,2]
[422717937,1779299447000,-124836.23664032,8.119e-05,2]
[422717941,1779299578000,165.316005,5.383e-05,2]
[422717940,1779299578000,165.316005,3.636e-05,2]
[422717945,1779299694000,221.63,0.000178,120]
[422717946,1779299709000,1650.40209,7e-05,2]
[422717952,1779300045000,169.978498,7.134e-05,120]
[422717955,1779300359000,324.5531,6.934e-05,2]
[422717960,1779300547000,-165.316005,7.129e-05,2]
[422717961,1779300547000,-522.93751402,7.131e-05,2]
[422717962,1779300547000,-144.04372008,7.134e-05,2]
[422717959,1779300547000,-194.0959609,7.008e-05,2]
[422718005,1779300631000,-99.53617744,7.826e-05,2]
[422718007,1779300631000,-1200.0,8.016e-05,2]
[422718001,1779300631000,-512.47876374,7.48e-05,2]
[422717999,1779300631000,-25.93477792,7.134e-05,2]
[422718002,1779300631000,-69.83337856,7.826e-05,2]
[422718010,1779300631000,-300.0,8.088e-05,2]
[422718014,1779300631000,-300.0,8.088e-05,2]
[422718018,1779300631000,-160.0,8.089e-05,2]
[422718009,1779300631000,-152.0,8.079e-05,30]
[422718012,1779300631000,-300.0,8.088e-05,2]
[422718020,1779300631000,-161.70661154,8.089e-05,2]
[422718031,1779300631000,-500.0,8.118e-05,2]
[422718024,1779300631000,-766.43500783,8.089e-05,2]
[422718028,1779300631000,-500.0,8.118e-05,2]
[422718022,1779300631000,-160.0,8.089e-05,2]
[422718030,1779300631000,-500.0,8.118e-05,2]
[422718026,1779300631000,-152.0,8.095e-05,30]
[422718033,1779300631000,-388.74620319,8.118e-05,2]
[422718016,1779300631000,-300.0,8.088e-05,2]
[422718045,1779300632000,-500.0,8.118e-05,2]
[422718035,1779300632000,-111.25379681,8.118e-05,2]
[422718051,1779300632000,-550.0,8.118e-05,2]
[422718047,1779300632000,-500.0,8.118e-05,2]
[422718044,1779300632000,-520.04768395,8.118e-05,2]
[422718053,1779300632000,-191506.39890372,8.119e-05,2]
[422718049,1779300632000,-500.0,8.118e-05,2]
[422718042,1779300632000,-500.0,8.118e-05,2]
[422718039,1779300632000,-500.0,8.118e-05,2]
[422718037,1779300632000,-500.0,8.118e-05,2]
[422718064,1779300637000,-152.0,7.567e-05,7]
[422718063,1779300637000,-152.0,7.567e-05,7]
[422718065,1779300637000,-76211.56663778,8.119e-05,2]
[422718068,1779300638000,-1393.27389609,8.119e-05,2]
[422718067,1779300638000,-733801.58126678,8.119e-05,2]
[422718066,1779300638000,-1091.58021988,8.119e-05,2]
[422718089,1779300643000,-2386.5768774,8.119e-05,2]
[422718088,1779300643000,-80150.38668207,8.119e-05,2]
[422718128,1779300646000,-32121.92272917,8.119e-05,2]
[422718112,1779300646000,-25687.55524769,8.119e-05,2]
[422718153,1779301644000,-49.50612316,7.198e-05,2]
[422718152,1779301644000,-166.35598,7.076e-05,2]
[422718156,1779301750000,-45.71936893,7.198e-05,2]
[422718155,1779301750000,-413.7436178,7.198e-05,2]
[422718186,1779301832000,-152.0,7.567e-05,7]
[422718184,1779301832000,-169.369556,7.566e-05,2]
[422718189,1779301832000,-152.0,7.571e-05,7]
[422718187,1779301832000,-152.0,7.567e-05,7]
[422718191,1779301832000,-152.0,7.769e-05,2]
[422718185,1779301832000,-498.78972769,7.566e-05,2]
[422718188,1779301832000,-152.0,7.569e-05,7]
[422718192,1779301832000,-1768.38887003,7.917e-05,2]
[422718194,1779301832000,-300.0,7.917e-05,2]
[422718190,1779301832000,-152.0,7.769e-05,2]
[422718193,1779301832000,-1925.3669619,7.917e-05,2]
[422718195,1779301832000,-300.0,7.917e-05,2]
[422718196,1779301832000,-1200.0,7.917e-05,2]
[422718197,1779301832000,-32097.50136717,7.918e-05,2]
[422718251,1779301838000,-629.0,8.219e-05,2]
[422718252,1779301838000,-500.0,8.219e-05,2]
[422718260,1779301838000,-500.0,8.219e-05,2]
[422718250,1779301838000,-500.0,8.219e-05,2]
[422718246,1779301838000,-560.73,8.219e-05,2]
[422718248,1779301838000,-440.30391059,8.219e-05,2]
[422718257,1779301838000,-500.0,8.219e-05,2]
[422718242,1779301838000,-500.0,8.219e-05,2]
[422718243,1779301838000,-1247.01709128,8.219e-05,2]
[422718244,1779301838000,-81.61290872,8.219e-05,2]
[422718256,1779301838000,-1144.8,8.219e-05,2]
[422718258,1779301838000,-151.0,8.219e-05,2]
[422718253,1779301838000,-500.0,8.219e-05,2]
[422718259,1779301838000,-500.0,8.219e-05,2]
[422718255,1779301838000,-410.0930468,8.219e-05,2]
[422718261,1779301838000,-618.41,8.219e-05,2]
[422718265,1779301838000,-986.8,8.219e-05,2]
[422718264,1779301838000,-546.35,8.219e-05,2]
[422718263,1779301838000,-623.1,8.219e-05,2]
[422718270,1779301838000,-500.0,8.219e-05,2]
[422718267,1779301838000,-500.0,8.219e-05,2]
[422718247,1779301838000,-500.0,8.219e-05,2]
[422718254,1779301838000,-89.9069532,8.219e-05,2]
[422718241,1779301838000,-500.0,8.219e-05,2]
[422718229,1779301838000,-3432.207,8.219e-05,2]
[422718240,1779301838000,-515.9,8.219e-05,2]
[422718219,1779301838000,-229.99,7.925e-05,2]
[422718218,1779301838000,-50000.0,7.925e-05,2]
[422718222,1779301838000,-152.0,8.111e-05,30]
[422718217,1779301838000,-6375.36678674,7.918e-05,2]
[422718221,1779301838000,-169.369556,8.097e-05,2]
[422718220,1779301838000,-152.0,8.094e-05,30]
[422718234,1779301838000,-500.0,8.219e-05,2]
[422718230,1779301838000,-657.4494,8.219e-05,2]
[422718262,1779301838000,-500.0,8.219e-05,2]
[422718225,1779301838000,-165.5096814,8.118e-05,2]
[422718236,1779301838000,-789.8,8.219e-05,2]
[422718231,1779301838000,-500.0,8.219e-05,2]
[422718226,1779301838000,-766.43500783,8.119e-05,2]
[422718228,1779301838000,-160.0,8.119e-05,2]
[422718227,1779301838000,-161.70661154,8.119e-05,2]
[422718223,1779301838000,-152.0,8.111e-05,30]
[422718232,1779301838000,-500.0,8.219e-05,2]
[422718233,1779301838000,-500.0,8.219e-05,2]
[422718235,1779301838000,-500.0,8.219e-05,2]
[422718237,1779301838000,-500.0,8.219e-05,2]
[422718238,1779301838000,-500.0,8.219e-05,2]
[422718239,1779301838000,-655.44,8.219e-05,2]
[422718224,1779301838000,-191.9171518,8.118e-05,2]
[422718268,1779301838000,-736.68,8.219e-05,2]
[422718249,1779301838000,-59.69608941,8.219e-05,2]
[422718272,1779301838000,-500.0,8.219e-05,2]
[422718289,1779301838000,-578.39,8.219e-05,2]
[422718299,1779301838000,-500.0,8.219e-05,2]
[422718300,1779301838000,-549.27,8.219e-05,2]
[422718302,1779301838000,-500.0,8.219e-05,2]
[422718301,1779301838000,-3051.98,8.219e-05,2]
[422718304,1779301838000,-500.0,8.219e-05,2]
[422718313,1779301838000,-500.0,8.219e-05,2]
[422718307,1779301838000,-151.0,8.219e-05,2]
[422718306,1779301838000,-500.0,8.219e-05,2]
[422718312,1779301838000,-193.78344319,8.219e-05,30]
[422718303,1779301838000,-1028.78,8.219e-05,2]
[422718305,1779301838000,-578.13,8.219e-05,2]